fUSD/lending_fUSD_20260613
["ID","MTS","AMOUNT","RATE_DAILY","PERIOD"]
[424959781,1781356259000,-500.0,0.00013698,2]
[424959780,1781356259000,-265.942942,0.00013698,2]
[424959775,1781356259000,-500.0,0.00013698,2]
[424959778,1781356259000,-500.0,0.00013698,2]
[424959777,1781356259000,-500.0,0.00013698,2]
[424959774,1781356259000,-500.0,0.00013698,2]
[424959782,1781356259000,-500.0,0.00013698,2]
[424959779,1781356259000,-500.0,0.00013698,2]
[424959783,1781356259000,-413.16742075,0.00013698,2]
[424959797,1781356259000,-500.0,0.00013698,2]
[424959789,1781356259000,-500.0,0.00013698,2]
[424959787,1781356259000,-500.0,0.00013698,2]
[424959784,1781356259000,-500.0,0.00013698,2]
[424959788,1781356259000,-500.0,0.00013698,2]
[424959790,1781356259000,-500.0,0.00013698,2]
[424959793,1781356259000,-500.0,0.00013698,2]
[424959795,1781356259000,-500.0,0.00013698,2]
[424959794,1781356259000,-500.0,0.00013698,2]
[424959798,1781356259000,-278.34102146,0.00013698,2]
[424959800,1781356259000,-200.0,0.00013699,2]
[424959776,1781356259000,-500.0,0.00013698,2]
[424959785,1781356259000,-500.0,0.00013698,2]
[424959772,1781356259000,-508.53399882,0.00013698,2]
[424959750,1781356259000,-348.17240013,0.00013698,2]
[424959767,1781356259000,-500.0,0.00013698,2]
[424959803,1781356259000,-515.0,0.00013699,2]
[424959749,1781356259000,-500.0,0.00013698,2]
[424959748,1781356259000,-500.0,0.00013698,2]
[424959747,1781356259000,-500.0,0.00013698,2]
[424959753,1781356259000,-500.0,0.00013698,2]
[424959752,1781356259000,-500.0,0.00013698,2]
[424959751,1781356259000,-500.0,0.00013698,2]
[424959754,1781356259000,-500.0,0.00013698,2]
[424959755,1781356259000,-500.0,0.00013698,2]
[424959757,1781356259000,-500.0,0.00013698,2]
[424959759,1781356259000,-300.0,0.00013698,2]
[424959773,1781356259000,-500.0,0.00013698,2]
[424959758,1781356259000,-500.0,0.00013698,2]
[424959760,1781356259000,-500.0,0.00013698,2]
[424959756,1781356259000,-607.90315145,0.00013698,2]
[424959763,1781356259000,-500.0,0.00013698,2]
[424959765,1781356259000,-500.0,0.00013698,2]
[424959762,1781356259000,-500.0,0.00013698,2]
[424959766,1781356259000,-500.0,0.00013698,2]
[424959764,1781356259000,-500.0,0.00013698,2]
[424959770,1781356259000,-500.0,0.00013698,2]
[424959768,1781356259000,-500.0,0.00013698,2]
[424959769,1781356259000,-500.0,0.00013698,2]
[424959771,1781356259000,-500.0,0.00013698,2]
[424959761,1781356259000,-500.0,0.00013698,2]
[424959802,1781356259000,-151.0,0.00013699,2]
[424959796,1781356259000,-500.0,0.00013698,2]
[424959855,1781356259000,-500.0,0.00013699,2]
[424959831,1781356259000,-500.0,0.00013699,2]
[424959833,1781356259000,-500.0,0.00013699,2]
[424959832,1781356259000,-500.0,0.00013699,2]
[424959836,1781356259000,-500.0,0.00013699,2]
[424959834,1781356259000,-500.0,0.00013699,2]
[424959838,1781356259000,-500.0,0.00013699,2]
[424959837,1781356259000,-486.63989877,0.00013699,2]
[424959840,1781356259000,-500.0,0.00013699,2]
[424959839,1781356259000,-500.0,0.00013699,2]
[424959841,1781356259000,-500.0,0.00013699,2]
[424959848,1781356259000,-500.0,0.00013699,2]
[424959830,1781356259000,-500.0,0.00013699,2]
[424959844,1781356259000,-500.0,0.00013699,2]
[424959846,1781356259000,-500.0,0.00013699,2]
[424959847,1781356259000,-500.0,0.00013699,2]
[424959845,1781356259000,-500.0,0.00013699,2]
[424959850,1781356259000,-500.0,0.00013699,2]
[424959849,1781356259000,-500.0,0.00013699,2]
[424959853,1781356259000,-500.0,0.00013699,2]
[424959852,1781356259000,-500.0,0.00013699,2]
[424959856,1781356259000,-1394.02105522,0.00013699,2]
[424959854,1781356259000,-500.0,0.00013699,2]
[424959851,1781356259000,-500.0,0.00013699,2]
[424959801,1781356259000,-2500.0,0.00013699,2]
[424959843,1781356259000,-500.0,0.00013699,2]
[424959835,1781356259000,-500.0,0.00013699,2]
[424959842,1781356259000,-500.0,0.00013699,2]
[424959829,1781356259000,-500.0,0.00013699,2]
[424959828,1781356259000,-500.0,0.00013699,2]
[424959805,1781356259000,-515.0,0.00013699,2]
[424959804,1781356259000,-515.0,0.00013699,2]
[424959811,1781356259000,-454.0,0.00013699,2]
[424959809,1781356259000,-515.0,0.00013699,2]
[424959807,1781356259000,-515.0,0.00013699,2]
[424959806,1781356259000,-515.0,0.00013699,2]
[424959815,1781356259000,-454.0,0.00013699,2]
[424959808,1781356259000,-346.02239708,0.00013699,2]
[424959810,1781356259000,-454.0,0.00013699,2]
[424959813,1781356259000,-454.0,0.00013699,2]
[424959814,1781356259000,-354.70593309,0.00013699,2]
[424959812,1781356259000,-454.0,0.00013699,2]
[424959799,1781356259000,-180.0,0.00013699,2]
[424959826,1781356259000,-500.0,0.00013699,2]
[424959817,1781356259000,-444.0,0.00013699,2]
[424959818,1781356259000,-453.0,0.00013699,2]
[424959825,1781356259000,-500.0,0.00013699,2]
[424959819,1781356259000,-500.0,0.00013699,2]
[424959820,1781356259000,-500.0,0.00013699,2]
[424959824,1781356259000,-500.0,0.00013699,2]
[424959821,1781356259000,-500.0,0.00013699,2]
[424959823,1781356259000,-500.0,0.00013699,2]
[424959822,1781356259000,-500.0,0.00013699,2]
[424959827,1781356259000,-500.0,0.00013699,2]
[424959816,1781356259000,-444.0,0.00013699,2]
[424959893,1781356260000,-1394.02105522,0.00013699,2]
[424959885,1781356260000,-1394.02105522,0.00013699,2]
[424959892,1781356260000,-1394.02105522,0.00013699,2]
[424959890,1781356260000,-1394.02105522,0.00013699,2]
[424959884,1781356260000,-1394.02105522,0.00013699,2]
[424959886,1781356260000,-1394.02105522,0.00013699,2]
[424959889,1781356260000,-1394.02105522,0.00013699,2]
[424959887,1781356260000,-1394.02105522,0.00013699,2]
[424959888,1781356260000,-1394.02105522,0.00013699,2]
[424959894,1781356260000,-1394.02105522,0.00013699,2]
[424959891,1781356260000,-1394.02105522,0.00013699,2]
[424959903,1781356260000,-1394.02105524,0.00013699,2]
[424959900,1781356260000,-1394.02105524,0.00013699,2]
[424959896,1781356260000,-1394.02105522,0.00013699,2]
[424959897,1781356260000,-1394.02105522,0.00013699,2]
[424959898,1781356260000,-1394.02105522,0.00013699,2]
[424959899,1781356260000,-1394.02105524,0.00013699,2]
[424959901,1781356260000,-1394.02105524,0.00013699,2]
[424959902,1781356260000,-1394.02105524,0.00013699,2]
[424959904,1781356260000,-1394.02105524,0.00013699,2]
[424959911,1781356260000,-639.26,0.000137,2]
[424959909,1781356260000,-1114.02357867,0.00013699,2]
[424959912,1781356260000,-2384.0,0.0001372,2]
[424959910,1781356260000,-844.427851,0.000137,2]
[424959895,1781356260000,-1394.02105522,0.00013699,2]
[424959882,1781356260000,-1394.02105522,0.00013699,2]
[424959914,1781356260000,-179.58165418,0.00013783,2]
[424959881,1781356260000,-1394.02105522,0.00013699,2]
[424959860,1781356260000,-1394.02105522,0.00013699,2]
[424959859,1781356260000,-1394.02105522,0.00013699,2]
[424959857,1781356260000,-1394.02105522,0.00013699,2]
[424959858,1781356260000,-1394.02105522,0.00013699,2]
[424959861,1781356260000,-1394.02105522,0.00013699,2]
[424959864,1781356260000,-1394.02105522,0.00013699,2]
[424959863,1781356260000,-1394.02105522,0.00013699,2]
[424959867,1781356260000,-1394.02105522,0.00013699,2]
[424959862,1781356260000,-1394.02105522,0.00013699,2]
[424959871,1781356260000,-1394.02105522,0.00013699,2]
[424959865,1781356260000,-1394.02105522,0.00013699,2]
[424959880,1781356260000,-1394.02105522,0.00013699,2]
[424959866,1781356260000,-1394.02105522,0.00013699,2]
[424959869,1781356260000,-1394.02105522,0.00013699,2]
[424959870,1781356260000,-1394.02105522,0.00013699,2]
[424959873,1781356260000,-1394.02105522,0.00013699,2]
[424959883,1781356260000,-1394.02105522,0.00013699,2]
[424959872,1781356260000,-1394.02105522,0.00013699,2]
[424959874,1781356260000,-1394.02105522,0.00013699,2]
[424959877,1781356260000,-1394.02105522,0.00013699,2]
[424959878,1781356260000,-1394.02105522,0.00013699,2]
[424959879,1781356260000,-1394.02105522,0.00013699,2]
[424959876,1781356260000,-1394.02105522,0.00013699,2]
[424959875,1781356260000,-1394.02105522,0.00013699,2]
[424959868,1781356260000,-1394.02105522,0.00013699,2]
[424959913,1781356260000,-283.72275252,0.00013756,2]
[424959965,1781356260000,-3000.0,0.000148,2]
[424959906,1781356260000,-1394.02105524,0.00013699,2]
[424959941,1781356260000,-396.13,0.00014466,2]
[424959942,1781356260000,-396.14,0.00014466,2]
[424959939,1781356260000,-573.32,0.00014459,2]
[424959940,1781356260000,-396.13,0.00014459,2]
[424959944,1781356260000,-1613.0535,0.00014471,2]
[424959945,1781356260000,-960.0,0.00014599,2]
[424959947,1781356260000,-283.72275252,0.00014652,2]
[424959960,1781356260000,-3000.0,0.000148,2]
[424959950,1781356260000,-160.0,0.0001468,2]
[424959949,1781356260000,-160.0,0.0001468,2]
[424959961,1781356260000,-3000.0,0.000148,2]
[424959946,1781356260000,-151.0,0.0001463,2]
[424959951,1781356260000,-2326.0,0.0001468,2]
[424959952,1781356260000,-150000.00999802,0.000147,2]
[424959956,1781356260000,-314.40729183,0.00014799,2]
[424959957,1781356260000,-3000.0,0.000148,2]
[424959954,1781356260000,-700.0,0.0001477,2]
[424959955,1781356260000,-350.0,0.0001478,3]
[424959959,1781356260000,-3000.0,0.000148,2]
[424959958,1781356260000,-3000.0,0.000148,2]
[424959966,1781356260000,-1019.96,0.000148,2]
[424959963,1781356260000,-3000.0,0.000148,2]
[424959962,1781356260000,-3000.0,0.000148,2]
[424959905,1781356260000,-1394.02105524,0.00013699,2]
[424959953,1781356260000,-500.0,0.00014726,2]
[424959943,1781356260000,-482.23,0.00014466,2]
[424959964,1781356260000,-3000.0,0.000148,2]
[424959948,1781356260000,-2326.0,0.0001468,2]
[424959937,1781356260000,-396.13,0.00014453,2]
[424959908,1781356260000,-324.51412083,0.00013699,2]
[424959915,1781356260000,-212.50083149,0.00013783,2]
[424959919,1781356260000,-50995.79764846,0.0001399,2]
[424959917,1781356260000,-1555.5,0.00013923,2]
[424959921,1781356260000,-250.0,0.00014,2]
[424959920,1781356260000,-500.0,0.0001399,2]
[424959916,1781356260000,-8546.32623551,0.00013785,2]
[424959918,1781356260000,-300.0,0.00013989,2]
[424959922,1781356260000,-160.0,0.0001404,2]
[424959925,1781356260000,-275.251513,0.00014227,7]
[424959923,1781356260000,-2326.0,0.0001404,2]
[424959907,1781356260000,-1394.02105521,0.00013699,2]
[424959926,1781356260000,-350.0,0.00014262,4]
[424959924,1781356260000,-283.72275252,0.00014204,2]
[424959938,1781356260000,-482.23,0.00014453,2]
[424959934,1781356260000,-396.13,0.00014453,2]
[424959932,1781356260000,-396.17,0.00014448,2]
[424959933,1781356260000,-185.1,0.00014453,2]
[424959935,1781356260000,-185.1,0.00014453,2]
[424959931,1781356260000,-644.07,0.0001444,2]
[424959928,1781356260000,-8546.32623551,0.00014343,2]
[424959929,1781356260000,-170.0,0.0001436,2]
[424959927,1781356260000,-213.28307627,0.00014329,2]
[424959930,1781356260000,-212.50083149,0.00014386,2]
[424959936,1781356260000,-644.07,0.00014453,2]
[424960006,1781356261000,-4262.96033156,0.0001485,2]
[424960004,1781356261000,-664.85,0.000148,2]
[424960003,1781356261000,-2000.0,0.000148,2]
[424960001,1781356261000,-2000.0,0.000148,2]
[424959996,1781356261000,-2000.0,0.000148,2]
[424959998,1781356261000,-2000.0,0.000148,2]
[424959995,1781356261000,-2000.0,0.000148,2]
[424959997,1781356261000,-2000.0,0.000148,2]
[424959999,1781356261000,-441.42,0.000148,2]
[424960002,1781356261000,-2000.0,0.000148,2]
[424960010,1781356261000,-300.0,0.00014892,2]
[424960012,1781356261000,-25000.0,0.00014895,3]
[424960005,1781356261000,-639.26,0.000148,2]
[424960008,1781356261000,-272.68814,0.0001488,2]
[424960009,1781356261000,-25000.0,0.00014886,3]
[424960014,1781356261000,-10000.0,0.000149,2]
[424960011,1781356261000,-17041.38981773,0.00014893,3]
[424960013,1781356261000,-16385.4,0.000149,2]
[424960016,1781356261000,-488.5,0.000149,2]
[424960017,1781356261000,-8546.32623551,0.000149,2]
[424960015,1781356261000,-321.98028625,0.000149,2]
[424960026,1781356261000,-158.06162742,0.00014946,10]
[424960000,1781356261000,-2000.0,0.000148,2]
[424960018,1781356261000,-182.725897,0.000149,2]
[424960007,1781356261000,-25000.0,0.00014877,3]
[424959993,1781356261000,-2000.0,0.000148,2]
[424959977,1781356261000,-2000.0,0.000148,2]
[424959988,1781356261000,-2000.0,0.000148,2]
[424960019,1781356261000,-182.725897,0.000149,2]
[424959968,1781356261000,-3000.0,0.000148,2]
[424959970,1781356261000,-2674.99,0.000148,2]
[424959969,1781356261000,-3000.0,0.000148,2]
[424959967,1781356261000,-3000.0,0.000148,2]
[424959971,1781356261000,-3000.0,0.000148,2]
[424959972,1781356261000,-3000.0,0.000148,2]
[424959974,1781356261000,-2000.0,0.000148,2]
[424959978,1781356261000,-2000.0,0.000148,2]
[424959975,1781356261000,-2000.0,0.000148,2]
[424959982,1781356261000,-2000.0,0.000148,2]
[424959980,1781356261000,-2000.0,0.000148,2]
[424959976,1781356261000,-2000.0,0.000148,2]
[424959979,1781356261000,-2000.0,0.000148,2]
[424959981,1781356261000,-2000.0,0.000148,2]
[424959973,1781356261000,-1004.99,0.000148,2]
[424959984,1781356261000,-2000.0,0.000148,2]
[424959983,1781356261000,-2000.0,0.000148,2]
[424959985,1781356261000,-2000.0,0.000148,2]
[424959989,1781356261000,-2000.0,0.000148,2]
[424959992,1781356261000,-2000.0,0.000148,2]
[424959986,1781356261000,-2000.0,0.000148,2]
[424959990,1781356261000,-2000.0,0.000148,2]
[424959991,1781356261000,-659.4,0.000148,2]
[424959987,1781356261000,-2000.0,0.000148,2]
[424959994,1781356261000,-2000.0,0.000148,2]
[424960022,1781356261000,-2644.50096908,0.000149,2]
[424960064,1781356261000,-449990.41430551,0.00015,2]
[424960023,1781356261000,-271.71547404,0.000149,2]
[424960061,1781356261000,-659200.59345016,0.00015,2]
[424960055,1781356261000,-150.0,0.00014999,2]
[424960054,1781356261000,-342.3508395,0.00014993,2]
[424960056,1781356261000,-300.0,0.00014999,2]
[424960057,1781356261000,-222644.33819622,0.00015,2]
[424960059,1781356261000,-763801.59708954,0.00015,2]
[424960058,1781356261000,-2503873.61658304,0.00015,2]
[424960060,1781356261000,-146269.08842562,0.00015,2]
[424960063,1781356261000,-1575418.11569216,0.00015,2]
[424960071,1781356261000,-9426.09515546,0.00015,2]
[424960072,1781356261000,-1253.74608,0.00015,2]
[424960051,1781356261000,-293.2218137,0.00014993,2]
[424960073,1781356261000,-446720.53200542,0.00015,2]
[424960075,1781356261000,-1360.7820639,0.00015,2]
[424960065,1781356261000,-351.9695452,0.00015,2]
[424960067,1781356261000,-651822.65734844,0.00015,2]
[424960068,1781356261000,-874132.48649178,0.00015,2]
[424960070,1781356261000,-136069.39797238,0.00015,2]
[424960066,1781356261000,-184.95340707,0.00015,7]
[424960069,1781356261000,-766.62,0.00015,2]
[424960074,1781356261000,-441617.7696064,0.00015,2]
[424960076,1781356261000,-200.0,0.00015,2]
[424960077,1781356261000,-202.69763327,0.00015,2]
[424960025,1781356261000,-272.68815,0.0001492,2]
[424960062,1781356261000,-129414.41201708,0.00015,2]
[424960050,1781356261000,-2000.0,0.0001499,2]
[424960053,1781356261000,-162.7741596,0.00014993,2]
[424960042,1781356261000,-151.0,0.00014975,2]
[424960021,1781356261000,-182.725897,0.000149,2]
[424960020,1781356261000,-182.725897,0.000149,2]
[424960024,1781356261000,-4885.23533525,0.000149,2]
[424960027,1781356261000,-158.06162742,0.0001496,10]
[424960028,1781356261000,-700.0,0.0001497,2]
[424960029,1781356261000,-700.0,0.0001497,2]
[424960036,1781356261000,-40543.2812781,0.0001497,2]
[424960052,1781356261000,-1821.2352016,0.00014993,2]
[424960030,1781356261000,-700.0,0.0001497,2]
[424960035,1781356261000,-700.0,0.0001497,2]
[424960033,1781356261000,-400.0,0.0001497,2]
[424960034,1781356261000,-602.18629117,0.0001497,2]
[424960031,1781356261000,-400.0,0.0001497,2]
[424960037,1781356261000,-272.68814,0.0001497,2]
[424960038,1781356261000,-1383.7719698,0.00014973,2]
[424960032,1781356261000,-400.0,0.0001497,2]
[424960044,1781356261000,-300.0,0.0001498,2]
[424960047,1781356261000,-309.675902,0.00014989,7]
[424960043,1781356261000,-20271.640639,0.00014977,2]
[424960046,1781356261000,-364.3245983,0.00014982,2]
[424960045,1781356261000,-123102.0610712,0.00014981,2]
[424960040,1781356261000,-277258.5492223,0.00014975,2]
[424960039,1781356261000,-10429.0199292,0.00014975,2]
[424960048,1781356261000,-179.58165418,0.0001499,2]
[424960049,1781356261000,-212.50083149,0.0001499,2]
[424960041,1781356261000,-123958.208638,0.00014975,2]
[424960089,1781356262000,-925.28607706,0.00015,2]
[424960086,1781356262000,-182.725897,0.00015,2]
[424960082,1781356262000,-13430.94790149,0.00015,2]
[424960087,1781356262000,-182.725897,0.00015,2]
[424960083,1781356262000,-150.0,0.00015,2]
[424960081,1781356262000,-272.68815,0.00015,2]
[424960084,1781356262000,-182.725897,0.00015,2]
[424960080,1781356262000,-272.68814,0.00015,2]
[424960079,1781356262000,-155.015342,0.00015,2]
[424960078,1781356262000,-151.0,0.00015,2]
[424960085,1781356262000,-182.725897,0.00015,2]
[424960090,1781356262000,-182.725897,0.00015,2]
[424960092,1781356262000,-182.725897,0.00015,2]
[424960100,1781356262000,-272.68815,0.0001502,2]
[424960088,1781356262000,-182.725897,0.00015,2]
[424960103,1781356262000,-900.0,0.00015068,2]
[424960098,1781356262000,-1973.0,0.00015,2]
[424960097,1781356262000,-226.35847443,0.00015,2]
[424960096,1781356262000,-182.725895,0.00015,2]
[424960101,1781356262000,-300.0,0.00015067,2]
[424960093,1781356262000,-182.725897,0.00015,2]
[424960099,1781356262000,-1672.7364795,0.00015019,2]
[424960095,1781356262000,-182.725897,0.00015,2]
[424960091,1781356262000,-182.725897,0.00015,2]
[424960094,1781356262000,-182.725897,0.00015,2]
[424960102,1781356262000,-150.0,0.00015068,2]
[424960141,1781356263000,-185.1,0.00015275,2]
[424960133,1781356263000,-644.05,0.00015265,2]
[424960132,1781356263000,-350.0,0.00015247,2]
[424960126,1781356263000,-200.0,0.0001515,2]
[424960136,1781356263000,-482.23,0.00015273,2]
[424960139,1781356263000,-396.13,0.00015275,2]
[424960134,1781356263000,-228.0,0.00015272,2]
[424960138,1781356263000,-644.07,0.00015275,2]
[424960137,1781356263000,-482.24,0.00015273,2]
[424960135,1781356263000,-227.0,0.00015272,2]
[424960146,1781356263000,-482.23,0.00015275,2]
[424960142,1781356263000,-185.1,0.00015275,2]
[424960144,1781356263000,-396.13,0.00015275,2]
[424960151,1781356263000,-482.23,0.00015275,2]
[424960128,1781356263000,-1253.74608,0.000152,2]
[424960143,1781356263000,-396.13,0.00015275,2]
[424960149,1781356263000,-644.07,0.00015275,2]
[424960147,1781356263000,-644.07,0.00015275,2]
[424960145,1781356263000,-396.13,0.00015275,2]
[424960150,1781356263000,-482.23,0.00015275,2]
[424960148,1781356263000,-396.15,0.00015275,2]
[424960152,1781356263000,-396.13,0.00015275,2]
[424960140,1781356263000,-482.23,0.00015275,2]
[424960127,1781356263000,-9426.09515546,0.000152,2]
[424960121,1781356263000,-866.624057,0.00015068,2]
[424960125,1781356263000,-283.72275252,0.000151,2]
[424960155,1781356263000,-396.13,0.00015275,2]
[424960107,1781356263000,-866.624057,0.00015068,2]
[424960109,1781356263000,-866.624057,0.00015068,2]
[424960110,1781356263000,-866.624057,0.00015068,2]
[424960104,1781356263000,-866.624057,0.00015068,2]
[424960106,1781356263000,-866.624057,0.00015068,2]
[424960105,1781356263000,-866.624057,0.00015068,2]
[424960108,1781356263000,-866.624057,0.00015068,2]
[424960114,1781356263000,-866.624057,0.00015068,2]
[424960111,1781356263000,-866.624057,0.00015068,2]
[424960112,1781356263000,-866.624057,0.00015068,2]
[424960118,1781356263000,-866.624057,0.00015068,2]
[424960120,1781356263000,-866.624057,0.00015068,2]
[424960116,1781356263000,-866.624057,0.00015068,2]
[424960117,1781356263000,-866.624057,0.00015068,2]
[424960115,1781356263000,-866.624057,0.00015068,2]
[424960113,1781356263000,-866.624057,0.00015068,2]
[424960119,1781356263000,-866.624057,0.00015068,2]
[424960122,1781356263000,-866.624057,0.00015068,2]
[424960124,1781356263000,-350.0,0.00015072,2]
[424960123,1781356263000,-866.624064,0.00015068,2]
[424960130,1781356263000,-152.0,0.00015215,5]
[424960129,1781356263000,-892.0,0.000152,2]
[424960131,1781356263000,-350.0,0.00015218,2]
[424960153,1781356263000,-482.27,0.00015275,2]
[424960167,1781356263000,-1517.64,0.000153,2]
[424960156,1781356263000,-482.25,0.00015281,2]
[424960192,1781356263000,-2007.40835544,0.00015972,2]
[424960191,1781356263000,-152.38965735,0.000159,2]
[424960182,1781356263000,-2883.18462174,0.000158,5]
[424960185,1781356263000,-500.0,0.00015863,2]
[424960187,1781356263000,-9426.09515546,0.000159,2]
[424960188,1781356263000,-151.98405163,0.000159,2]
[424960190,1781356263000,-200.0,0.000159,4]
[424960189,1781356263000,-150.0,0.000159,2]
[424960194,1781356263000,-779.62905849,0.00016,2]
[424960195,1781356263000,-6000.0,0.00016,2]
[424960186,1781356263000,-350.0,0.00015888,4]
[424960199,1781356263000,-227.62441787,0.00016,2]
[424960201,1781356263000,-396.13,0.00016087,2]
[424960197,1781356263000,-300.0,0.00016,2]
[424960202,1781356263000,-482.23,0.00016093,2]
[424960203,1781356263000,-482.23,0.00016095,2]
[424960193,1781356263000,-160.0,0.00016,8]
[424960196,1781356263000,-159.0,0.00016,2]
[424960205,1781356263000,-482.23,0.00016095,2]
[424960204,1781356263000,-185.12,0.00016095,2]
[424960206,1781356263000,-380.12795597,0.00016096,2]
[424960158,1781356263000,-644.07,0.00015288,2]
[424960200,1781356263000,-350.0,0.00016074,5]
[424960184,1781356263000,-2276.54541104,0.00015807,2]
[424960198,1781356263000,-639.26,0.00016,2]
[424960181,1781356263000,-350.0,0.00015606,2]
[424960154,1781356263000,-482.27,0.00015275,2]
[424960183,1781356263000,-9426.09515546,0.000158,2]
[424960160,1781356263000,-482.27,0.00015288,2]
[424960157,1781356263000,-396.13,0.00015281,2]
[424960159,1781356263000,-482.23,0.00015288,2]
[424960168,1781356263000,-9426.09515546,0.000153,2]
[424960162,1781356263000,-482.23,0.00015288,2]
[424960169,1781356263000,-1253.74608,0.000153,2]
[424960161,1781356263000,-644.07,0.00015288,2]
[424960171,1781356263000,-10210.83,0.00015464,2]
[424960163,1781356263000,-396.13,0.00015288,2]
[424960164,1781356263000,-644.07,0.00015288,2]
[424960170,1781356263000,-200.0,0.00015301,2]
[424960178,1781356263000,-1734.62772924,0.00015567,2]
[424960166,1781356263000,-482.23,0.00015289,2]
[424960173,1781356263000,-1233.63,0.00015464,2]
[424960172,1781356263000,-842.51,0.00015464,2]
[424960176,1781356263000,-9426.09515546,0.000155,2]
[424960174,1781356263000,-4433.37,0.00015464,2]
[424960175,1781356263000,-350.0,0.00015477,4]
[424960180,1781356263000,-1253.74608,0.000156,2]
[424960177,1781356263000,-1253.74608,0.000155,2]
[424960165,1781356263000,-644.07,0.00015288,2]
[424960179,1781356263000,-9426.09515546,0.000156,2]
[424960236,1781356264000,-200.0,0.0001634,2]
[424960244,1781356264000,-220.49143389,0.00016438,2]
[424960243,1781356264000,-236.32501947,0.00016438,2]
[424960258,1781356264000,-228.19286381,0.00016438,2]
[424960235,1781356264000,-350.0,0.00016336,4]
[424960239,1781356264000,-1275.0,0.00016396,2]
[424960240,1781356264000,-9426.09515546,0.000164,2]
[424960238,1781356264000,-1359.0,0.00016396,2]
[424960241,1781356264000,-152.67709504,0.00016438,2]
[424960237,1781356264000,-350.0,0.00016393,2]
[424960242,1781356264000,-179.81368823,0.00016438,2]
[424960254,1781356264000,-179.38180561,0.00016438,2]
[424960249,1781356264000,-269.11782425,0.00016438,2]
[424960247,1781356264000,-191.78484353,0.00016438,2]
[424960250,1781356264000,-289.95483254,0.00016438,2]
[424960246,1781356264000,-169.89064243,0.00016438,2]
[424960253,1781356264000,-204.34743704,0.00016438,2]
[424960256,1781356264000,-202.03534184,0.00016438,2]
[424960248,1781356264000,-192.87955359,0.00016438,2]
[424960252,1781356264000,-208.44236253,0.00016438,2]
[424960251,1781356264000,-206.28713858,0.00016438,2]
[424960255,1781356264000,-178.93796086,0.00016438,2]
[424960229,1781356264000,-152.0,0.00016132,6]
[424960245,1781356264000,-173.95088446,0.00016438,2]
[424960232,1781356264000,-350.0,0.00016251,4]
[424960214,1781356264000,-482.23,0.00016097,2]
[424960233,1781356264000,-301.039906,0.00016259,7]
[424960211,1781356264000,-396.13,0.00016096,2]
[424960213,1781356264000,-482.23,0.00016097,2]
[424960208,1781356264000,-500.0,0.00016096,2]
[424960212,1781356264000,-482.23,0.00016096,2]
[424960207,1781356264000,-500.0,0.00016096,2]
[424960210,1781356264000,-482.23,0.00016096,2]
[424960209,1781356264000,-482.23,0.00016096,2]
[424960223,1781356264000,-482.23,0.0001611,2]
[424960220,1781356264000,-396.13,0.00016103,2]
[424960216,1781356264000,-185.11,0.00016097,2]
[424960218,1781356264000,-9426.09515546,0.000161,2]
[424960217,1781356264000,-150.0,0.000161,2]
[424960221,1781356264000,-644.09,0.0001611,2]
[424960222,1781356264000,-482.23,0.0001611,2]
[424960224,1781356264000,-396.13,0.0001611,2]
[424960215,1781356264000,-252.87,0.00016097,2]